[Event "Live Chess"]
[Site "Chess.com"]
[Date "2023.05.20"]
[Round "-"]
[White "ReeceHockton"]
[Black "Driftboard"]
[Result "0-1"]
[WhiteElo "331"]
[BlackElo "660"]
[TimeControl "300"]
[EndTime "10:09:57 PDT"]
[Termination "Driftboard won by checkmate"]

1. d4 {[%clk 0:04:57.3]} 1... d5 {[%clk 0:04:58.2]} 2. e4 {[%clk 0:04:56.1]}
2... dxe4 {[%clk 0:04:57]} 3. Nc3 {[%clk 0:04:55.6]} 3... Nf6 {[%clk 0:04:55]}
4. f3 {[%clk 0:04:54.7]} 4... exf3 {[%clk 0:04:53.8]} 5. Nxf3 {[%clk 0:04:53.8]}
5... Nc6 {[%clk 0:04:52.1]} 6. Bg5 {[%clk 0:04:52.2]} 6... Bg4 {[%clk
0:04:49.5]} 7. Bxf6 {[%clk 0:04:50.1]} 7... exf6 {[%clk 0:04:48.3]} 8. Bd3
{[%clk 0:04:42.8]} 8... Bxf3 {[%clk 0:04:46.9]} 9. Qxf3 {[%clk 0:04:41.5]} 9...
Be7 {[%clk 0:04:40.9]} 10. O-O-O {[%clk 0:04:37.6]} 10... Nxd4 {[%clk
0:04:39.5]} 11. Qe3 {[%clk 0:04:32.5]} 11... O-O {[%clk 0:04:35.2]} 12. Rhe1
{[%clk 0:04:23.6]} 12... Ne6 {[%clk 0:04:30.5]} 13. Bf5 {[%clk 0:04:19.4]} 13...
Qc8 {[%clk 0:04:21.6]} 14. Bxe6 {[%clk 0:04:14.9]} 14... fxe6 {[%clk 0:04:19.7]}
15. Qxe6+ {[%clk 0:04:12.2]} 15... Qxe6 {[%clk 0:04:18.1]} 16. Rxe6 {[%clk
0:04:10.8]} 16... Rfe8 {[%clk 0:04:15.9]} 17. Rde1 {[%clk 0:04:02.3]} 17... Kf7
{[%clk 0:04:13.5]} 18. Rxe7+ {[%clk 0:04:00.3]} 18... Rxe7 {[%clk 0:04:12.4]}
19. Ne4 {[%clk 0:03:55.4]} 19... f5 {[%clk 0:04:09.2]} 20. Ng5+ {[%clk
0:03:44.1]} 20... Kf6 {[%clk 0:03:59.7]} 21. Nxh7+ {[%clk 0:03:42.5]} 21... Kf7
{[%clk 0:03:58.6]} 22. Ng5+ {[%clk 0:03:40.1]} 22... Kf8 {[%clk 0:03:56.1]} 23.
Ne6+ {[%clk 0:03:35.6]} 23... Kf7 {[%clk 0:03:45.8]} 24. Kd1 {[%clk 0:03:29.1]}
24... Rxe6 {[%clk 0:03:41.5]} 25. Rxe6 {[%clk 0:03:17.5]} 25... Kxe6 {[%clk
0:03:40.3]} 26. c3 {[%clk 0:03:15]} 26... Rd8+ {[%clk 0:03:38.6]} 27. Kc2 {[%clk
0:03:12.9]} 27... Kd5 {[%clk 0:03:37.6]} 28. b4 {[%clk 0:03:12.1]} 28... c5
{[%clk 0:03:36.1]} 29. Kb3 {[%clk 0:03:08.1]} 29... cxb4 {[%clk 0:03:33.9]} 30.
cxb4 {[%clk 0:03:07.4]} 30... b6 {[%clk 0:03:31.1]} 31. h3 {[%clk 0:03:06.4]}
31... a5 {[%clk 0:03:27.4]} 32. bxa5 {[%clk 0:03:02.2]} 32... bxa5 {[%clk
0:03:25.2]} 33. Ka4 {[%clk 0:03:01.5]} 33... Kc5 {[%clk 0:03:24.3]} 34. Kxa5
{[%clk 0:03:00.8]} 34... Ra8# {[%clk 0:03:22.9]} 0-1

[Event "Live Chess"]
[Site "Chess.com"]
[Date "2023.05.20"]
[Round "-"]
[White "Leonid_Starozhilov"]
[Black "toog"]
[Result "0-1"]
[WhiteElo "2657"]
[BlackElo "2638"]
[TimeControl "300"]
[EndTime "10:10:04 PDT"]
[Termination "toog won on time"]

1. e4 {[%clk 0:04:59.1]} 1... e5 {[%clk 0:04:58.1]} 2. Nf3 {[%clk 0:04:58.1]}
2... Nc6 {[%clk 0:04:57]} 3. Nc3 {[%clk 0:04:58]} 3... Nf6 {[%clk 0:04:55.6]} 4.
Bb5 {[%clk 0:04:57.7]} 4... Nd4 {[%clk 0:04:53.6]} 5. Bc4 {[%clk 0:04:57.3]}
5... c6 {[%clk 0:04:49.9]} 6. d3 {[%clk 0:04:55.9]} 6... d5 {[%clk 0:04:43.2]}
7. Bb3 {[%clk 0:04:54.9]} 7... Nxb3 {[%clk 0:04:41.6]} 8. axb3 {[%clk
0:04:53.5]} 8... Bd6 {[%clk 0:04:40.6]} 9. Bg5 {[%clk 0:04:50.3]} 9... d4 {[%clk
0:04:38.1]} 10. Ne2 {[%clk 0:04:47.9]} 10... O-O {[%clk 0:04:37.2]} 11. O-O
{[%clk 0:04:43.4]} 11... h6 {[%clk 0:04:35.6]} 12. Bd2 {[%clk 0:04:32.5]} 12...
Bg4 {[%clk 0:04:30.6]} 13. Ng3 {[%clk 0:04:29.6]} 13... Qd7 {[%clk 0:04:27.6]}
14. h3 {[%clk 0:04:27.2]} 14... Be6 {[%clk 0:04:26.2]} 15. Nh4 {[%clk
0:04:25.1]} 15... Rfe8 {[%clk 0:04:22.1]} 16. Nhf5 {[%clk 0:04:23.6]} 16... Bf8
{[%clk 0:04:21.7]} 17. f4 {[%clk 0:04:22.3]} 17... exf4 {[%clk 0:04:20]} 18.
Bxf4 {[%clk 0:04:21.4]} 18... Nh7 {[%clk 0:04:15.3]} 19. Qh5 {[%clk 0:04:03.9]}
19... a6 {[%clk 0:04:09.6]} 20. Rf2 {[%clk 0:03:55]} 20... f6 {[%clk 0:04:07]}
21. Raf1 {[%clk 0:03:50.4]} 21... Bf7 {[%clk 0:04:05.9]} 22. Qg4 {[%clk
0:03:48.7]} 22... Kh8 {[%clk 0:04:01.6]} 23. Nxh6 {[%clk 0:03:45.2]} 23... Be6
{[%clk 0:03:54.9]} 24. Nhf5 {[%clk 0:03:38.6]} 24... Qf7 {[%clk 0:03:52]} 25.
Qf3 {[%clk 0:03:29.9]} 25... Rad8 {[%clk 0:03:48.3]} 26. Bd2 {[%clk 0:03:21.5]}
26... c5 {[%clk 0:03:33.4]} 27. Ne2 {[%clk 0:03:09.7]} 27... Ng5 {[%clk
0:03:29.8]} 28. Qg4 {[%clk 0:02:50]} 28... g6 {[%clk 0:03:23.8]} 29. Qh4+ {[%clk
0:02:45.6]} 29... Nh7 {[%clk 0:03:20.3]} 30. Nh6 {[%clk 0:02:40.4]} 30... Bxh6
{[%clk 0:03:09]} 31. Qxh6 {[%clk 0:02:33.5]} 31... Qg7 {[%clk 0:03:03.2]} 32.
Rxf6 {[%clk 0:02:21.7]} 32... Qxh6 {[%clk 0:02:59.2]} 33. Bxh6 {[%clk
0:02:21.6]} 33... Nxf6 {[%clk 0:02:57.8]} 34. Rxf6 {[%clk 0:02:21.4]} 34... Kh7
{[%clk 0:02:56.2]} 35. Bg5 {[%clk 0:02:15.1]} 35... Rd7 {[%clk 0:02:50.1]} 36.
Nf4 {[%clk 0:02:12.3]} 36... Bf7 {[%clk 0:02:49.4]} 37. h4 {[%clk 0:02:08.3]}
37... b5 {[%clk 0:02:47.2]} 38. Rxa6 {[%clk 0:02:01.3]} 38... c4 {[%clk
0:02:45.9]} 39. b4 {[%clk 0:01:55.7]} 39... cxd3 {[%clk 0:02:42.7]} 40. cxd3
{[%clk 0:01:55.6]} 40... Rc7 {[%clk 0:02:28.7]} 41. Kh2 {[%clk 0:01:51]} 41...
Rc2 {[%clk 0:02:27.5]} 42. Rb6 {[%clk 0:01:34.6]} 42... Rxb2 {[%clk 0:02:24.9]}
43. Rxb5 {[%clk 0:01:33.4]} 43... Kg8 {[%clk 0:02:17.7]} 44. Rb7 {[%clk
0:01:31.8]} 44... Re5 {[%clk 0:02:12.1]} 45. Bf6 {[%clk 0:01:28.9]} 45... Re8
{[%clk 0:02:06.3]} 46. b5 {[%clk 0:01:28.2]} 46... Rb4 {[%clk 0:02:04.5]} 47. b6
{[%clk 0:01:24.8]} 47... Rc8 {[%clk 0:02:02.4]} 48. e5 {[%clk 0:01:22.2]} 48...
Re8 {[%clk 0:01:59.6]} 49. e6 {[%clk 0:01:16.2]} 49... Rxe6 {[%clk 0:01:52.4]}
50. Nxe6 {[%clk 0:01:13.6]} 50... Bxe6 {[%clk 0:01:52.3]} 51. Rg7+ {[%clk
0:01:11.1]} 51... Kf8 {[%clk 0:01:51.1]} 52. b7 {[%clk 0:01:08]} 52... Bd5
{[%clk 0:01:45.5]} 53. Rd7 {[%clk 0:01:06]} 53... Bxb7 {[%clk 0:01:42]} 54. Bxd4
{[%clk 0:00:47.1]} 54... Rb3 {[%clk 0:01:37.4]} 55. Bc5+ {[%clk 0:00:42.3]}
55... Kg8 {[%clk 0:01:36.3]} 56. g4 {[%clk 0:00:39]} 56... Ba6 {[%clk
0:01:32.9]} 57. d4 {[%clk 0:00:34.6]} 57... Be2 {[%clk 0:01:30.4]} 58. Rd8+
{[%clk 0:00:23.2]} 58... Kf7 {[%clk 0:01:29.1]} 59. Rf8+ {[%clk 0:00:20.2]}
59... Kg7 {[%clk 0:01:27.1]} 60. Rf4 {[%clk 0:00:18.3]} 60... Bc4 {[%clk
0:01:23]} 61. Bf8+ {[%clk 0:00:17]} 61... Kg8 {[%clk 0:01:22]} 62. Bh6 {[%clk
0:00:15.7]} 62... Bd5 {[%clk 0:01:21.1]} 63. Rf8+ {[%clk 0:00:14.2]} 63... Kh7
{[%clk 0:01:20.6]} 64. g5 {[%clk 0:00:13.9]} 64... Rd3 {[%clk 0:01:17.9]} 65.
Rd8 {[%clk 0:00:12.4]} 65... Rxd4 {[%clk 0:01:16.9]} 66. Kg3 {[%clk 0:00:10.1]}
66... Rd3+ {[%clk 0:01:14.5]} 67. Kf4 {[%clk 0:00:09.4]} 67... Bc4 {[%clk
0:01:13.3]} 68. Rc8 {[%clk 0:00:06.4]} 68... Rd4+ {[%clk 0:01:11.7]} 69. Ke5
{[%clk 0:00:05]} 69... Rxh4 {[%clk 0:01:10.4]} 70. Rc7+ {[%clk 0:00:03.6]} 70...
Kg8 {[%clk 0:01:09.5]} 71. Rc8+ {[%clk 0:00:02.9]} 71... Kf7 {[%clk 0:01:08.7]}
72. Rc7+ {[%clk 0:00:02.2]} 72... Ke8 {[%clk 0:01:08.1]} 73. Kd6 {[%clk
0:00:00.7]} 73... Rf4 {[%clk 0:01:06.9]} 0-1

[Event "Live Chess"]
[Site "Chess.com"]
[Date "2023.05.20"]
[Round "-"]
[White "hturner40"]
[Black "M00nDr4g0n"]
[Result "1-0"]
[WhiteElo "1839"]
[BlackElo "872"]
[TimeControl "300"]
[EndTime "10:10:26 PDT"]
[Termination "hturner40 won by checkmate"]

1. Nc3 {[%clk 0:04:55.8]} 1... d6 {[%clk 0:04:54.4]} 2. e4 {[%clk 0:04:51.1]}
2... Nf6 {[%clk 0:04:52.4]} 3. d4 {[%clk 0:04:48.6]} 3... c6 {[%clk 0:04:49.1]}
4. Bg5 {[%clk 0:04:36.8]} 4... Qa5 {[%clk 0:04:44.9]} 5. Qd2 {[%clk 0:04:27.7]}
5... Nxe4 {[%clk 0:04:42.1]} 6. Nxe4 {[%clk 0:04:24.9]} 6... Qxd2+ {[%clk
0:04:39.6]} 7. Bxd2 {[%clk 0:04:20.3]} 7... g6 {[%clk 0:04:33]} 8. O-O-O {[%clk
0:04:13]} 8... Bg7 {[%clk 0:04:31.3]} 9. Bc3 {[%clk 0:04:07.6]} 9... O-O {[%clk
0:04:28.8]} 10. Nf3 {[%clk 0:04:04.7]} 10... d5 {[%clk 0:04:26.9]} 11. Ng3
{[%clk 0:03:58.2]} 11... Be6 {[%clk 0:04:19.7]} 12. Ng5 {[%clk 0:03:47.5]} 12...
Nd7 {[%clk 0:04:10.5]} 13. Nxe6 {[%clk 0:03:37.8]} 13... fxe6 {[%clk 0:04:05.8]}
14. f3 {[%clk 0:03:32.8]} 14... e5 {[%clk 0:03:58.1]} 15. dxe5 {[%clk
0:03:28.3]} 15... Nxe5 {[%clk 0:03:53.5]} 16. Re1 {[%clk 0:03:21.4]} 16... Rad8
{[%clk 0:03:39.7]} 17. Bxe5 {[%clk 0:03:18.8]} 17... d4 {[%clk 0:03:30]} 18.
Bxg7 {[%clk 0:03:16]} 18... Kxg7 {[%clk 0:03:27.7]} 19. Rxe7+ {[%clk 0:03:14.6]}
19... Kg8 {[%clk 0:03:24]} 20. Bc4+ {[%clk 0:03:11.8]} 20... Kh8 {[%clk
0:03:11.1]} 21. Ne4 {[%clk 0:03:09.4]} 21... Rf4 {[%clk 0:02:45.4]} 22. Ng5
{[%clk 0:02:58]} 22... h6 {[%clk 0:02:36.7]} 23. Rh7# {[%clk 0:02:55.2]} 1-0

[Event "Live Chess"]
[Site "Chess.com"]
[Date "2023.05.20"]
[Round "-"]
[White "mach247"]
[Black "Ian-Morley"]
[Result "1-0"]
[WhiteElo "1356"]
[BlackElo "1036"]
[TimeControl "300"]
[EndTime "10:10:26 PDT"]
[Termination "mach247 won by resignation"]

1. e4 {[%clk 0:04:59.3]} 1... e5 {[%clk 0:04:57.8]} 2. Nf3 {[%clk 0:04:58.8]}
2... Nc6 {[%clk 0:04:56.8]} 3. Bc4 {[%clk 0:04:58]} 3... Nf6 {[%clk 0:04:55.7]}
4. d3 {[%clk 0:04:57.1]} 4... Na5 {[%clk 0:04:53.9]} 5. Nxe5 {[%clk 0:04:45.5]}
5... Nxc4 {[%clk 0:04:33.1]} 6. Nxc4 {[%clk 0:04:45.4]} 6... b5 {[%clk
0:04:32.1]} 7. Ne3 {[%clk 0:04:31.2]} 7... Be7 {[%clk 0:04:26]} 8. Nf5 {[%clk
0:04:17.6]} 8... O-O {[%clk 0:04:01.7]} 9. Nxe7+ {[%clk 0:04:15.2]} 9... Qxe7
{[%clk 0:04:00.6]} 10. Bg5 {[%clk 0:04:14.1]} 10... h6 {[%clk 0:03:59.3]} 11.
Bxf6 {[%clk 0:04:08.1]} 11... Qxf6 {[%clk 0:03:58.2]} 12. Nd2 {[%clk 0:04:03.8]}
12... Re8 {[%clk 0:03:57]} 13. Qf3 {[%clk 0:04:02.7]} 13... Qxf3 {[%clk
0:03:55.7]} 14. Nxf3 {[%clk 0:04:02.6]} 14... d5 {[%clk 0:03:54.9]} 15. e5
{[%clk 0:03:57.2]} 15... f6 {[%clk 0:03:53.3]} 16. d4 {[%clk 0:03:53.1]} 16...
fxe5 {[%clk 0:03:52]} 17. dxe5 {[%clk 0:03:51.7]} 17... Bg4 {[%clk 0:03:51.1]}
18. O-O-O {[%clk 0:03:50.8]} 18... Bxf3 {[%clk 0:03:50.2]} 19. gxf3 {[%clk
0:03:50.1]} 19... Rxe5 {[%clk 0:03:49.4]} 20. Rhg1 {[%clk 0:03:40.9]} 20... Rf5
{[%clk 0:03:46.6]} 21. Rg3 {[%clk 0:03:39.6]} 21... Raf8 {[%clk 0:03:45.5]} 22.
Rdg1 {[%clk 0:03:37.2]} 22... g5 {[%clk 0:03:42.6]} 23. h4 {[%clk 0:03:36]}
23... Rxf3 {[%clk 0:03:39.9]} 24. Rxf3 {[%clk 0:03:31.6]} 24... Rxf3 {[%clk
0:03:38.4]} 25. hxg5 {[%clk 0:03:31.4]} 25... hxg5 {[%clk 0:03:37.3]} 26. Rxg5+
{[%clk 0:03:30.4]} 26... Kf7 {[%clk 0:03:36.9]} 27. Rxd5 {[%clk 0:03:29.5]}
27... Rxf2 {[%clk 0:03:36.2]} 28. Rd7+ {[%clk 0:03:28.8]} 28... Ke6 {[%clk
0:03:35.3]} 29. Rxc7 {[%clk 0:03:28.4]} 29... a5 {[%clk 0:03:33.3]} 30. Rb7
{[%clk 0:03:25.3]} 30... b4 {[%clk 0:03:31.4]} 31. Rb5 {[%clk 0:03:24.4]} 31...
Rf1+ {[%clk 0:03:29]} 32. Kd2 {[%clk 0:03:23.8]} 32... Rf2+ {[%clk 0:03:28.2]}
33. Kd3 {[%clk 0:03:22.8]} 33... Rf3+ {[%clk 0:03:26.7]} 34. Kc4 {[%clk
0:03:21.2]} 34... Rf4+ {[%clk 0:03:25.4]} 35. Kc5 {[%clk 0:03:18.5]} 35... Rf5+
{[%clk 0:03:21.8]} 36. Kb6 {[%clk 0:03:17.7]} 36... Rxb5+ {[%clk 0:03:20.5]} 37.
Kxb5 {[%clk 0:03:17.6]} 37... Kd5 {[%clk 0:03:19.7]} 38. Kxa5 {[%clk 0:03:17.2]}
38... Kc4 {[%clk 0:03:18.5]} 39. c3 {[%clk 0:03:12.9]} 39... bxc3 {[%clk
0:03:16.8]} 40. bxc3 {[%clk 0:03:11.2]} 40... Kxc3 {[%clk 0:03:16.3]} 41. a4
{[%clk 0:03:10.6]} 41... Kc4 {[%clk 0:03:15.7]} 42. Kb6 {[%clk 0:03:09.6]} 42...
Kb4 {[%clk 0:03:12.3]} 43. a5 {[%clk 0:03:09]} 43... Ka4 {[%clk 0:03:10.2]} 44.
a6 {[%clk 0:03:08.1]} 44... Kb4 {[%clk 0:03:08.9]} 45. a7 {[%clk 0:03:07.6]} 1-0

[Event "Live Chess"]
[Site "Chess.com"]
[Date "2023.05.20"]
[Round "-"]
[White "risinghelios"]
[Black "CheckThis4"]
[Result "0-1"]
[WhiteElo "1954"]
[BlackElo "2543"]
[TimeControl "300"]
[EndTime "10:10:32 PDT"]
[Termination "CheckThis4 won by checkmate"]

1. e4 {[%clk 0:04:59.4]} 1... c5 {[%clk 0:04:55.4]} 2. c3 {[%clk 0:04:57.9]}
2... d5 {[%clk 0:04:51]} 3. exd5 {[%clk 0:04:57.1]} 3... Qxd5 {[%clk 0:04:46.3]}
4. d4 {[%clk 0:04:56.5]} 4... Nc6 {[%clk 0:04:34.2]} 5. Nf3 {[%clk 0:04:54.7]}
5... Bf5 {[%clk 0:04:24.7]} 6. Be2 {[%clk 0:04:53.4]} 6... e6 {[%clk 0:04:21.4]}
7. O-O {[%clk 0:04:51.9]} 7... Nf6 {[%clk 0:04:16.9]} 8. Be3 {[%clk 0:04:50.4]}
8... Bxb1 {[%clk 0:04:08]} 9. Qxb1 {[%clk 0:04:47.5]} 9... cxd4 {[%clk
0:03:31.4]} 10. Nxd4 {[%clk 0:04:45.1]} 10... Nxd4 {[%clk 0:03:27.7]} 11. Bxd4
{[%clk 0:04:45]} 11... Be7 {[%clk 0:03:26.3]} 12. Bf3 {[%clk 0:04:43.8]} 12...
Qd7 {[%clk 0:03:20.8]} 13. Rd1 {[%clk 0:04:40.6]} 13... Qc7 {[%clk 0:03:19.7]}
14. Qc2 {[%clk 0:04:32.6]} 14... O-O {[%clk 0:03:16.7]} 15. Re1 {[%clk
0:04:29.3]} 15... Rac8 {[%clk 0:03:08.7]} 16. Rad1 {[%clk 0:04:26.2]} 16... Rfd8
{[%clk 0:03:04.1]} 17. Be5 {[%clk 0:04:24.2]} 17... Qb6 {[%clk 0:03:02.2]} 18.
Bd4 {[%clk 0:04:21]} 18... Rxd4 {[%clk 0:02:56]} 19. Rxd4 {[%clk 0:04:15.9]}
19... Qxd4 {[%clk 0:02:53.5]} 20. Bxb7 {[%clk 0:04:07.3]} 20... Rc7 {[%clk
0:02:48.2]} 21. Rd1 {[%clk 0:03:52.3]} 21... Qb6 {[%clk 0:02:45.4]} 22. Bf3
{[%clk 0:03:50.3]} 22... h5 {[%clk 0:02:42.2]} 23. Qd2 {[%clk 0:03:48.5]} 23...
Rd7 {[%clk 0:02:37.2]} 24. Qc2 {[%clk 0:03:44.4]} 24... Rxd1+ {[%clk 0:02:33.9]}
25. Qxd1 {[%clk 0:03:44.3]} 25... Qxb2 {[%clk 0:02:28]} 26. h3 {[%clk
0:03:43.2]} 26... Qxc3 {[%clk 0:02:24.9]} 27. Qb1 {[%clk 0:03:41.1]} 27... Qb4
{[%clk 0:02:20.3]} 28. Qc2 {[%clk 0:03:38.1]} 28... Bc5 {[%clk 0:02:14.2]} 29.
Qd1 {[%clk 0:03:34.8]} 29... Qd4 {[%clk 0:02:10.5]} 30. Qc2 {[%clk 0:03:32.3]}
30... g6 {[%clk 0:02:06.7]} 31. Kh2 {[%clk 0:03:25.3]} 31... Kg7 {[%clk
0:02:06]} 32. Qb3 {[%clk 0:03:23.8]} 32... Qxf2 {[%clk 0:02:03]} 33. Qb7 {[%clk
0:03:22.3]} 33... Bd6+ {[%clk 0:02:00.4]} 34. Kh1 {[%clk 0:03:21.2]} 34... Qe1#
{[%clk 0:01:58.9]} 0-1

[Event "Live Chess"]
[Site "Chess.com"]
[Date "2023.05.20"]
[Round "-"]
[White "LiamBellwood"]
[Black "ranvir123"]
[Result "1-0"]
[WhiteElo "2093"]
[BlackElo "875"]
[TimeControl "300"]
[EndTime "10:10:32 PDT"]
[Termination "LiamBellwood won by resignation"]

1. d4 {[%clk 0:04:59.5]} 1... Nf6 {[%clk 0:04:55.2]} 2. Nc3 {[%clk 0:04:59.4]}
2... g6 {[%clk 0:04:53.6]} 3. Bf4 {[%clk 0:04:59]} 3... Bg7 {[%clk 0:04:52.8]}
4. e4 {[%clk 0:04:58.8]} 4... d5 {[%clk 0:04:50.1]} 5. e5 {[%clk 0:04:58]} 5...
Ne4 {[%clk 0:04:46.3]} 6. Nxe4 {[%clk 0:04:53.9]} 6... dxe4 {[%clk 0:04:41.6]}
7. c4 {[%clk 0:04:53.5]} 7... O-O {[%clk 0:04:38.6]} 8. Ne2 {[%clk 0:04:52.1]}
8... Nc6 {[%clk 0:04:37]} 9. Qd2 {[%clk 0:04:44.2]} 9... Bg4 {[%clk 0:04:34.3]}
10. Rd1 {[%clk 0:04:33.8]} 10... f6 {[%clk 0:04:25]} 11. exf6 {[%clk 0:04:31.4]}
11... Bxf6 {[%clk 0:04:21.4]} 12. d5 {[%clk 0:04:24.3]} 12... Ne5 {[%clk
0:04:12.1]} 13. b3 {[%clk 0:04:15.8]} 13... Qd6 {[%clk 0:03:59.3]} 14. h3 {[%clk
0:04:09.7]} 14... Bf5 {[%clk 0:03:52.9]} 15. g4 {[%clk 0:04:08.5]} 15... Bd7
{[%clk 0:03:51]} 16. Bg2 {[%clk 0:04:04.9]} 16... Bh4 {[%clk 0:03:35.2]} 17. O-O
{[%clk 0:03:42.7]} 17... Bxg4 {[%clk 0:03:24.7]} 18. hxg4 {[%clk 0:03:36.6]}
18... Nxg4 {[%clk 0:03:23.5]} 19. Bxd6 {[%clk 0:03:35.1]} 19... Bxf2+ {[%clk
0:03:18.8]} 20. Rxf2 {[%clk 0:03:28.4]} 20... Rxf2 {[%clk 0:03:16.2]} 21. Bg3
{[%clk 0:03:18.7]} 21... Raf8 {[%clk 0:03:09]} 22. Bxf2 {[%clk 0:03:17.8]} 22...
Rxf2 {[%clk 0:03:07]} 23. Rf1 {[%clk 0:03:17.4]} 23... Rxf1+ {[%clk 0:03:02.1]}
24. Kxf1 {[%clk 0:03:17.3]} 24... Nh2+ {[%clk 0:03:01.3]} 25. Kg1 {[%clk
0:03:16.1]} 25... Ng4 {[%clk 0:03:00.1]} 26. Qf4 {[%clk 0:03:13.6]} 26... h5
{[%clk 0:02:56.9]} 27. Bxe4 {[%clk 0:03:12.2]} 27... e5 {[%clk 0:02:53.3]} 28.
dxe6 {[%clk 0:03:11.1]} 1-0

[Event "Live Chess"]
[Site "Chess.com"]
[Date "2023.05.20"]
[Round "-"]
[White "MarkLim1"]
[Black "HonestJoe1"]
[Result "0-1"]
[WhiteElo "1627"]
[BlackElo "2123"]
[TimeControl "300"]
[EndTime "10:10:34 PDT"]
[Termination "HonestJoe1 won by checkmate"]

1. d4 {[%clk 0:04:36.4]} 1... Nf6 {[%clk 0:04:58.1]} 2. Nf3 {[%clk 0:04:34.5]}
2... g6 {[%clk 0:04:55.8]} 3. c4 {[%clk 0:04:32.4]} 3... Bg7 {[%clk 0:04:54.7]}
4. Nc3 {[%clk 0:04:31.7]} 4... O-O {[%clk 0:04:53.7]} 5. e4 {[%clk 0:04:31]}
5... d6 {[%clk 0:04:52.9]} 6. Be2 {[%clk 0:04:30.2]} 6... e5 {[%clk 0:04:51.7]}
7. d5 {[%clk 0:04:29.4]} 7... Nh5 {[%clk 0:04:47.4]} 8. g3 {[%clk 0:04:28.2]}
8... Bh3 {[%clk 0:04:43.5]} 9. Be3 {[%clk 0:04:24]} 9... Na6 {[%clk 0:04:37.7]}
10. Qd2 {[%clk 0:04:22.7]} 10... b6 {[%clk 0:04:30]} 11. O-O-O {[%clk
0:04:21.1]} 11... Nc5 {[%clk 0:04:29.2]} 12. Ng5 {[%clk 0:04:16.1]} 12... Bd7
{[%clk 0:04:27.4]} 13. Bxh5 {[%clk 0:04:11.9]} 13... gxh5 {[%clk 0:04:26.3]} 14.
Qe2 {[%clk 0:03:56.7]} 14... Bg4 {[%clk 0:04:19]} 15. f3 {[%clk 0:03:53.1]}
15... Bd7 {[%clk 0:04:17.2]} 16. g4 {[%clk 0:03:39.2]} 16... h6 {[%clk
0:04:07.7]} 17. Nh3 {[%clk 0:03:34.3]} 17... Qh4 {[%clk 0:04:01.3]} 18. Nf2
{[%clk 0:03:27.6]} 18... hxg4 {[%clk 0:03:54.5]} 19. Nxg4 {[%clk 0:03:25.8]}
19... h5 {[%clk 0:03:47.3]} 20. Bf2 {[%clk 0:03:10.8]} 20... Qg5+ {[%clk
0:03:43]} 21. Ne3 {[%clk 0:03:09.5]} 21... Kh8 {[%clk 0:03:25.1]} 22. h4 {[%clk
0:03:08]} 22... Qf4 {[%clk 0:03:20.3]} 23. Rdg1 {[%clk 0:03:03.2]} 23... Bh6
{[%clk 0:03:19]} 24. Kb1 {[%clk 0:03:00.5]} 24... Rg8 {[%clk 0:03:17.8]} 25. Nf5
{[%clk 0:02:38]} 25... Bxf5 {[%clk 0:03:15]} 26. exf5 {[%clk 0:02:37.1]} 26...
Qxf5+ {[%clk 0:03:14]} 27. Ne4 {[%clk 0:02:31.7]} 27... Rxg1+ {[%clk 0:03:04.1]}
28. Rxg1 {[%clk 0:02:30.4]} 28... Rg8 {[%clk 0:03:03.5]} 29. Rxg8+ {[%clk
0:02:20.6]} 29... Kxg8 {[%clk 0:03:02.4]} 30. b4 {[%clk 0:02:07.4]} 30... Nxe4
{[%clk 0:02:57.7]} 31. fxe4 {[%clk 0:02:06.5]} 31... Qg4 {[%clk 0:02:56.9]} 32.
Qxg4+ {[%clk 0:01:53]} 32... hxg4 {[%clk 0:02:55.2]} 33. Kc2 {[%clk 0:01:50.5]}
33... Kg7 {[%clk 0:02:54.3]} 34. c5 {[%clk 0:01:48.4]} 34... Kg6 {[%clk
0:02:52.3]} 35. a4 {[%clk 0:01:43]} 35... f5 {[%clk 0:02:51.1]} 36. exf5+ {[%clk
0:01:40.6]} 36... Kxf5 {[%clk 0:02:50]} 37. a5 {[%clk 0:01:37.2]} 37... bxa5
{[%clk 0:02:47.2]} 38. bxa5 {[%clk 0:01:35.2]} 38... Ke4 {[%clk 0:02:43.8]} 39.
cxd6 {[%clk 0:01:33.8]} 39... cxd6 {[%clk 0:02:42.3]} 40. Bxa7 {[%clk
0:01:32.3]} 40... Kxd5 {[%clk 0:02:40.5]} 41. Bf2 {[%clk 0:01:28.2]} 41... Kc6
{[%clk 0:02:38.5]} 42. a6 {[%clk 0:01:27.3]} 42... d5 {[%clk 0:02:35.3]} 43. Kd3
{[%clk 0:01:25.7]} 43... Bf4 {[%clk 0:02:20.6]} 44. h5 {[%clk 0:01:24.1]} 44...
g3 {[%clk 0:02:18.2]} 45. Bg1 {[%clk 0:01:22.4]} 45... Kc7 {[%clk 0:02:04.8]}
46. Bc5 {[%clk 0:01:07.5]} 46... g2 {[%clk 0:01:48.9]} 47. Ke2 {[%clk
0:01:03.7]} 47... Kc6 {[%clk 0:01:30.5]} 48. Bg1 {[%clk 0:01:01.4]} 48... d4
{[%clk 0:01:24.3]} 49. Kf2 {[%clk 0:00:59.2]} 49... Kb6 {[%clk 0:01:23.3]} 50.
Kxg2 {[%clk 0:00:57.6]} 50... Kxa6 {[%clk 0:01:22.6]} 51. Kf3 {[%clk 0:00:54.7]}
51... Kb5 {[%clk 0:01:21.3]} 52. Ke2 {[%clk 0:00:53.1]} 52... Kc4 {[%clk
0:01:18.9]} 53. Bf2 {[%clk 0:00:43.3]} 53... e4 {[%clk 0:01:17.1]} 54. Kd1
{[%clk 0:00:42.6]} 54... d3 {[%clk 0:01:11.7]} 55. Be1 {[%clk 0:00:42]} 55... e3
{[%clk 0:01:09.7]} 56. Ba5 {[%clk 0:00:41.1]} 56... e2+ {[%clk 0:01:02.3]} 57.
Ke1 {[%clk 0:00:40]} 57... Kb3 {[%clk 0:00:55.9]} 58. Bd2 {[%clk 0:00:34.4]}
58... Bg3# {[%clk 0:00:52.5]} 0-1